bitfinex/quotes_BTCUSD_20220226
["timestamp","ask_amount","ask_price","bid_price","bid_amount"]
[1645910554360,0.171,39629.0,39628.0,1.3616352]
[1645910554562,0.171,39629.0,39628.0,1.3362852]
[1645910554862,0.17094,39629.0,39628.0,1.3362852]
[1645910555466,0.17094,39629.0,39628.0,0.85822999]
[1645910555716,0.22154,39629.0,39628.0,0.85822999]
[1645910557111,0.22254,39629.0,39628.0,0.85822999]
[1645910557411,0.40553139,39629.0,39628.0,0.85322999]
[1645910558409,0.40453139,39629.0,39628.0,0.85322999]
[1645910559214,0.40553139,39629.0,39628.0,0.85322999]
[1645910560449,0.40453139,39629.0,39628.0,0.85322999]
[1645910561149,0.40546501,39629.0,39628.0,0.85322999]
[1645910562150,0.35486501,39629.0,39628.0,0.85322999]
[1645910562350,0.35386501,39629.0,39628.0,0.85322999]
[1645910562552,0.54900433,39629.0,39628.0,0.85322999]
[1645910562754,0.65279927,39629.0,39628.0,0.85322999]
[1645910563205,0.65379927,39629.0,39628.0,0.85322999]
[1645910563603,0.71694427,39629.0,39628.0,0.85322999]
[1645910563908,0.28780161,39629.0,39628.0,0.85322999]
[1645910564102,0.22465661,39629.0,39628.0,0.85322999]
[1645910564306,0.22365661,39629.0,39628.0,0.85322999]
[1645910565102,0.22465661,39629.0,39628.0,0.85322999]
[1645910565304,0.065,39636.0,39630.0,1.2]
[1645910565305,0.3,39636.0,39630.0,1.2]
[1645910565614,0.18939,39648.0,39630.0,1.2]
[1645910565615,0.0999,39647.0,39638.0,0.377734]
[1645910565910,2.11436748,39657.0,39638.0,0.377734]
[1645910565911,0.00033956,39649.0,39648.0,0.44305521]
[1645910566106,0.00033956,39649.0,39648.0,0.92782521]
[1645910566303,0.00033956,39649.0,39648.0,1.67416521]
[1645910566504,0.00033956,39649.0,39648.0,1.29809921]
[1645910566705,0.00033956,39649.0,39648.0,0.93044521]
[1645910566952,0.00033956,39649.0,39648.0,1.22036521]
[1645910567157,0.00033956,39649.0,39648.0,1.19501521]
[1645910567354,0.00033956,39649.0,39648.0,0.85532521]
[1645910567857,0.00033956,39649.0,39648.0,0.75666]
[1645910569149,0.00133956,39649.0,39648.0,0.75666]
[1645910570450,0.25133956,39649.0,39648.0,0.75666]
[1645910571701,0.31633956,39649.0,39648.0,0.75666]
[1645910571902,0.31116906,39649.0,39648.0,0.75666]
[1645910572105,0.25624906,39649.0,39648.0,0.75666]
[1645910572301,0.25524906,39649.0,39648.0,0.75666]
[1645910572503,0.24516906,39649.0,39648.0,0.75666]
[1645910572902,0.24516906,39649.0,39648.0,1.05666]
[1645910573105,0.24616906,39649.0,39648.0,1.53305921]
[1645910573899,0.24616906,39649.0,39648.0,1.23305921]
[1645910574456,0.24516906,39649.0,39648.0,1.25840921]
[1645910574860,0.18608753,39659.0,39649.0,0.97535]
[1645910575060,0.18608753,39659.0,39658.0,0.412734]
[1645910575269,0.18608753,39659.0,39658.0,0.512464]
[1645910575458,0.18608753,39659.0,39658.0,1.268934]
[1645910575661,0.01328,39669.0,39658.0,1.394284]
[1645910575662,0.0032,39669.0,39658.0,1.394284]
[1645910575863,0.0032,39669.0,39668.0,0.035]
[1645910576063,0.0032,39669.0,39668.0,0.818444]
[1645910576260,0.0032,39669.0,39668.0,0.518444]
[1645910576459,0.0032,39669.0,39668.0,1.274724]
[1645910576659,0.0032,39669.0,39668.0,1.269724]
[1645910576857,0.0032,39669.0,39668.0,1.244374]
[1645910577057,0.0032,39669.0,39668.0,0.83664]
[1645910577265,0.00421549,39671.0,39668.0,0.83664]
[1645910577461,0.0026,39671.0,39668.0,0.83664]
[1645910577659,0.00040393,39670.0,39668.0,0.83664]
[1645910578498,0.0026,39671.0,39668.0,0.83664]
[1645910578799,0.00300393,39671.0,39668.0,0.83664]
[1645910579302,0.00300393,39671.0,39668.0,0.81164]
[1645910579700,0.0026,39671.0,39668.0,0.81164]
[1645910580006,0.00300393,39671.0,39668.0,0.81164]
[1645910580601,0.20680105,39673.0,39668.0,0.81164]
[1645910580800,0.073151,39675.0,39668.0,0.81164]
[1645910581203,0.001,39671.0,39668.0,0.81164]
[1645910581803,0.17467161,39671.0,39668.0,0.81164]
[1645910582351,0.17367161,39671.0,39668.0,0.81164]
[1645910582555,0.17367161,39671.0,39668.0,0.65628]
[1645910584947,0.17337161,39671.0,39668.0,0.65628]
[1645910585252,0.17437161,39671.0,39668.0,0.65628]
[1645910586398,0.17337161,39671.0,39668.0,0.65628]
[1645910587199,0.17437161,39671.0,39668.0,0.65628]
[1645910587603,0.07437161,39671.0,39668.0,0.65628]
[1645910587804,0.06937161,39671.0,39668.0,0.65628]
[1645910588101,0.05937161,39671.0,39668.0,0.65628]
[1645910588501,0.05837161,39671.0,39668.0,0.65628]
[1645910588701,0.04837161,39671.0,39668.0,0.65628]
[1645910588901,0.00040291,39673.0,39668.0,0.65628]
[1645910589304,0.0411,39676.0,39668.0,0.65628]
[1645910589305,0.001,39671.0,39669.0,0.677734]
[1645910589552,0.001,39671.0,39670.0,0.09366521]
[1645910589755,0.001,39671.0,39670.0,0.407734]
[1645910590460,0.23897009,39674.0,39668.0,0.65628]
[1645910590654,0.23607688,39674.0,39668.0,0.65628]
[1645910590852,0.00040292,39673.0,39668.0,0.65628]
[1645910591654,0.23607688,39674.0,39668.0,0.65628]
[1645910592055,0.00040292,39673.0,39668.0,0.65628]
[1645910592961,0.05,39678.0,39668.0,0.65628]
[1645910593202,0.00040292,39673.0,39668.0,0.65628]
[1645910593600,0.00040292,39673.0,39669.0,0.005]
[1645910594200,0.05161146,39678.0,39669.0,0.005]
[1645910594201,0.05,39678.0,39669.0,0.005]
[1645910594599,0.29,39678.0,39669.0,0.005]
[1645910595002,0.29,39678.0,39670.0,0.377734]
[1645910595206,0.29,39678.0,39677.0,0.382734]
[1645910595207,0.241,39678.0,39677.0,0.382734]
[1645910595801,0.241,39678.0,39677.0,0.377734]
[1645910596402,0.24,39678.0,39677.0,0.377734]
[1645910596603,0.24,39678.0,39677.0,0.382734]
[1645910597067,0.000486,39685.0,39677.0,0.708084]
[1645910597276,0.000486,39685.0,39684.0,0.005]
[1645910597473,0.000486,39685.0,39684.0,0.47174921]
[1645910597665,0.000486,39685.0,39684.0,1.30236921]
[1645910597871,0.0022,39688.0,39684.0,1.30236921]
[1645910598266,0.0022,39688.0,39685.0,0.703084]
[1645910598461,0.0022,39688.0,39685.0,1.259034]
[1645910599065,0.0022,39688.0,39685.0,0.85595]
[1645910601698,0.00040161,39687.0,39685.0,0.85595]
[1645910601897,0.00040161,39687.0,39685.0,1.233684]
[1645910602100,0.00040161,39687.0,39685.0,0.85595]
[1645910602498,0.0022,39688.0,39685.0,0.85595]
[1645910602998,0.00040161,39687.0,39685.0,0.85595]
[1645910603198,0.00040161,39687.0,39685.0,1.233684]
[1645910603798,0.0022,39688.0,39685.0,1.233684]
[1645910604000,0.00012065,39687.0,39685.0,1.233684]
[1645910605056,0.0022,39688.0,39685.0,1.208684]
[1645910605357,2.143388,39686.0,39685.0,1.208684]
[1645910605559,0.00012065,39687.0,39686.0,0.403084]
[1645910605758,2.065e-05,39689.0,39688.0,0.06366521]
[1645910605959,2.065e-05,39689.0,39688.0,1.41264921]
[1645910606156,0.0011,39691.0,39688.0,1.41264921]
[1645910606157,0.001,39701.0,39688.0,1.41264921]
[1645910606359,0.5765,39710.0,39699.0,0.377734]
[1645910606558,0.5765,39710.0,39701.0,0.377063]
[1645910606758,0.8765,39710.0,39701.0,0.377063]
[1645910607157,0.5765,39710.0,39701.0,0.377063]
[1645910607359,0.5765,39710.0,39698.0,0.005]
[1645910607360,0.096,39708.0,39698.0,0.377063]
[1645910607561,0.096,39708.0,39697.0,0.377063]
[1645910607562,0.15856905,39701.0,39697.0,0.377063]
[1645910607762,0.18406835,39703.0,39697.0,0.377063]
[1645910607960,0.18406835,39703.0,39696.0,0.002]
[1645910608234,0.176416,39699.0,39696.0,0.002]
[1645910608435,0.521316,39697.0,39688.0,0.8809]
[1645910608738,0.09,39689.0,39688.0,0.8809]
[1645910608931,1.16016959,39689.0,39688.0,0.8809]
[1645910609334,1.21016959,39689.0,39687.0,0.00036194]
[1645910609535,0.3,39688.0,39687.0,0.00036194]
[1645910609731,0.522816,39688.0,39687.0,0.00036194]
[1645910609934,0.622816,39688.0,39687.0,0.00036194]
[1645910610135,0.4464,39688.0,39687.0,0.00036194]
[1645910610334,0.622816,39688.0,39687.0,0.00036194]
[1645910610633,0.4464,39688.0,39687.0,0.00036194]
[1645910611439,0.623816,39688.0,39687.0,0.00036194]
[1645910611634,0.623816,39688.0,39687.0,1.94e-06]
[1645910611840,0.063074,39679.0,39662.0,0.01007]
[1645910612067,0.063074,39679.0,39659.0,0.05]
[1645910612068,0.063077,39671.0,39659.0,0.05]
[1645910612261,0.0464,39670.0,39658.0,0.01008]
[1645910612459,0.34768513,39669.0,39665.0,0.0004564]
[1645910612657,0.22220415,39666.0,39665.0,0.0004564]
[1645910612853,0.0464,39666.0,39665.0,0.0004564]
[1645910613260,0.3474,39666.0,39665.0,0.0004564]
[1645910613455,0.0474,39666.0,39652.0,0.01]
[1645910613660,0.0474,39666.0,39664.0,0.00045639]
[1645910613856,0.47002276,39665.0,39664.0,0.00045639]
[1645910614070,0.47002276,39665.0,39664.0,6.39e-06]
[1645910614071,0.862816,39665.0,39664.0,6.39e-06]
[1645910614259,0.126203,39662.0,39649.0,0.56858699]
[1645910614458,0.176416,39656.0,39649.0,0.56858699]
[1645910614757,0.176416,39654.0,39649.0,0.56858699]
[1645910614957,0.0464,39653.0,39649.0,0.56858699]
[1645910615157,0.176416,39652.0,39649.0,0.56858699]
[1645910616212,0.176416,39650.0,39649.0,0.56858699]
[1645910616412,0.222816,39650.0,39649.0,0.56858699]
[1645910616614,0.285922,39650.0,39649.0,0.56858699]
[1645910617215,0.79932577,39650.0,39649.0,0.56858699]
[1645910617417,0.88932577,39650.0,39648.0,5.49e-06]
[1645910617714,0.88932577,39650.0,39644.0,0.001]
[1645910617715,0.176416,39648.0,39644.0,0.001]
[1645910617912,0.329538,39645.0,39644.0,0.001]
[1645910618113,0.8876915,39645.0,39644.0,0.001]
[1645910618314,0.285938,39645.0,39644.0,0.001]
[1645910618511,0.285938,39645.0,39638.0,9.0]
[1645910618713,0.222816,39645.0,39638.0,9.0]
[1645910618912,0.222816,39645.0,39644.0,0.54]
[1645910619115,0.222816,39645.0,39644.0,0.24]
[1645910620154,0.40867404,39645.0,39644.0,0.24]
[1645910620358,0.79867404,39645.0,39644.0,0.24]
[1645910620556,0.49867404,39645.0,39644.0,0.24]
[1645910620755,0.69332969,39645.0,39644.0,0.24]
[1645910621153,0.69432969,39645.0,39644.0,0.24]
[1645910621759,0.286931,39645.0,39644.0,0.24]
[1645910621957,0.223816,39645.0,39644.0,0.24]
[1645910622653,0.222816,39645.0,39644.0,0.24]
[1645910623053,0.42643401,39645.0,39644.0,0.24]
[1645910623297,0.42743401,39645.0,39644.0,0.24]
[1645910623701,0.49054901,39645.0,39644.0,0.24]
[1645910623903,0.286931,39645.0,39644.0,0.24]
[1645910624500,0.285931,39645.0,39644.0,0.24]
[1645910624899,0.283631,39645.0,39644.0,0.24]
[1645910627349,0.285631,39645.0,39644.0,0.24]
[1645910628451,0.283631,39645.0,39644.0,0.24]
[1645910629254,0.284631,39645.0,39644.0,0.24]
[1645910630354,2.07092019,39645.0,39644.0,0.24]
[1645910630553,2.06992019,39645.0,39644.0,0.24]
[1645910631006,0.189346,39655.0,39644.0,0.24]
[1645910631204,0.189346,39655.0,39645.0,0.01]
[1645910631205,0.063106,39648.0,39645.0,0.01]
[1645910631405,0.176416,39647.0,39644.0,0.24]
[1645910631608,0.176416,39647.0,39644.0,0.239332]
[1645910631801,0.176416,39647.0,39645.0,0.00044955]
[1645910632006,0.36659021,39646.0,39645.0,0.00044955]
[1645910632704,0.36659021,39646.0,39644.0,0.239332]
[1645910632903,0.176416,39645.0,39644.0,0.23978156]
[1645910633904,0.176416,39645.0,39644.0,0.239332]
[1645910633905,0.176316,39645.0,39644.0,0.239332]
[1645910634103,0.222716,39645.0,39644.0,0.239332]
[1645910635352,0.223716,39645.0,39644.0,0.239332]
[1645910636553,0.222716,39645.0,39644.0,0.239332]
[1645910636756,0.063106,39648.0,39644.0,0.239332]
[1645910636955,0.17624,39647.0,39644.0,0.239332]
[1645910637757,0.17624,39647.0,39644.0,0.23978796]
[1645910637954,0.239354,39647.0,39644.0,0.23978796]
[1645910638400,0.17624,39645.0,39644.0,0.23978796]
[1645910638600,0.17624,39645.0,39644.0,0.23933476]
[1645910638802,0.17624,39645.0,39644.0,0.2388788]
[1645910639401,0.17724,39645.0,39644.0,0.2388788]
[1645910640403,0.16126394,39645.0,39644.0,0.2388788]
[1645910640601,0.16026394,39645.0,39644.0,0.2388788]
[1645910641005,0.16020394,39645.0,39644.0,0.2388788]
[1645910641408,0.16120394,39645.0,39644.0,0.2388788]
[1645910641608,0.001,39645.0,39644.0,0.5488788]
[1645910641810,0.001,39645.0,39644.0,0.9517778]
[1645910642063,0.2499,39657.0,39647.0,0.377549]
[1645910642266,0.2499,39657.0,39651.0,0.01]
[1645910642660,0.18797517,39653.0,39651.0,0.01]
[1645910642863,0.2499,39657.0,39653.0,0.02535]
[1645910643064,0.0999,39666.0,39656.0,0.01]
[1645910643263,0.09983607,39666.0,39663.0,0.01]
[1645910643461,0.00161234,39667.0,39664.0,0.377549]
[1645910643660,2.29497417,39674.0,39663.0,0.01]
[1645910643860,0.19354265,39664.0,39663.0,0.01]
[1645910644059,0.19354265,39664.0,39663.0,0.387549]
[1645910645462,0.00040326,39668.0,39663.0,0.387549]
[1645910645699,0.00040326,39668.0,39665.0,0.01]
[1645910645902,0.126137,39677.0,39667.0,0.01]
[1645910646106,0.0996,39684.0,39674.0,0.01]
[1645910646303,0.0021,39685.0,39674.0,0.01]
[1645910646304,0.18902333,39676.0,39675.0,0.377549]
[1645910646504,0.18902333,39676.0,39668.0,0.75621]
[1645910646803,0.160204,39675.0,39668.0,0.76621]
[1645910647001,0.17402333,39676.0,39668.0,0.76621]
[1645910647402,0.17402333,39676.0,39668.0,0.66621]
[1645910647606,0.42402333,39676.0,39668.0,0.66621]
[1645910648405,0.25,39676.0,39669.0,0.3]
[1645910648606,0.25,39676.0,39669.0,0.30042811]
[1645910648803,0.00039825,39674.0,39669.0,0.30042811]
[1645910649202,0.00039825,39674.0,39670.0,0.377549]
[1645910649449,0.00039825,39674.0,39671.0,0.3]
[1645910649655,0.25,39676.0,39672.0,1.223749]
[1645910649852,0.00039825,39674.0,39673.0,0.377549]
[1645910650051,0.00039825,39674.0,39673.0,1.223729]
[1645910650856,0.25,39676.0,39673.0,0.84618]
[1645910650857,0.44806788,39676.0,39673.0,0.84618]
[1645910651051,0.00039825,39675.0,39673.0,0.84618]
[1645910651854,0.160204,39674.0,39673.0,0.84618]
[1645910652067,0.460204,39674.0,39673.0,0.84618]
[1645910652258,0.460204,39674.0,39669.0,0.00042878]
[1645910652259,0.160204,39672.0,39669.0,0.00042878]
[1645910652459,0.160204,39670.0,39669.0,0.00042878]
[1645910652651,0.67334446,39670.0,39669.0,0.00042878]
[1645910652855,0.77334446,39670.0,39669.0,0.00042878]
[1645910653050,0.77973405,39670.0,39669.0,0.00042878]
[1645910653311,0.23597898,39653.0,39648.0,0.29799285]
[1645910653517,0.23597898,39653.0,39646.0,0.17081429]
[1645910653518,0.23597898,39653.0,39647.0,0.377549]
[1645910653712,0.063087,39663.0,39647.0,0.677549]
[1645910653910,0.109487,39663.0,39647.0,0.677549]
[1645910654110,0.109487,39663.0,39653.0,6e-05]
[1645910654511,0.109487,39663.0,39656.0,0.00042887]
[1645910654714,0.22436779,39657.0,39656.0,0.00042887]
[1645910655314,0.109487,39663.0,39654.0,0.377549]
[1645910655521,0.109487,39663.0,39651.0,0.001]
[1645910656117,0.0464,39663.0,39653.0,0.12535]
[1645910656323,0.22468843,39668.0,39654.0,0.702899]
[1645910656515,0.22468843,39668.0,39656.0,0.377549]
[1645910656716,0.22468843,39668.0,39657.0,0.3]
[1645910656957,0.20558215,39662.0,39658.0,0.377549]
[1645910658356,0.00011978,39669.0,39658.0,0.377549]
[1645910658357,0.20592855,39669.0,39658.0,0.377549]
[1645910658554,0.00011978,39669.0,39656.0,0.02535]
[1645910658757,0.00011978,39669.0,39657.0,0.402899]
[1645910658955,0.00011978,39669.0,39657.0,0.02535]
[1645910659158,0.3,39680.0,39660.0,0.02535]
[1645910659363,0.19462762,39671.0,39666.0,0.377549]
[1645910659557,0.00039929,39669.0,39666.0,0.377549]
[1645910660361,0.19462762,39671.0,39656.0,0.7746]
[1645910660562,0.19773802,39666.0,39657.0,0.75636]
[1645910660821,0.00039932,39669.0,39657.0,0.75636]
[1645910661020,0.00039932,39669.0,39658.0,0.377549]
[1645910661219,0.00039932,39669.0,39661.0,0.02535]
[1645910661418,0.00039932,39669.0,39662.0,0.402899]
[1645910661619,0.0993,39677.0,39662.0,0.402899]
[1645910661917,0.00039931,39669.0,39663.0,0.377549]
[1645910662519,0.00039931,39669.0,39664.0,0.02535]
[1645910662723,0.00039931,39669.0,39665.0,0.402899]
[1645910662920,0.0993,39677.0,39665.0,0.402899]
[1645910663119,0.09629637,39677.0,39665.0,0.02535]
[1645910663322,0.09629637,39677.0,39663.0,0.02535]
[1645910663520,0.20362732,39673.0,39664.0,0.02381]
[1645910663718,0.20362732,39673.0,39666.0,0.377549]
[1645910663918,0.20362732,39673.0,39664.0,0.02381]
[1645910664118,0.20362732,39673.0,39665.0,0.377549]
[1645910666352,0.09629637,39677.0,39665.0,0.377549]
[1645910666553,0.09629637,39677.0,39667.0,0.02535]
[1645910666757,0.00011978,39676.0,39668.0,0.440594]
[1645910666952,0.00011978,39676.0,39670.0,0.377549]
[1645910667651,0.25,39677.0,39670.0,0.377549]
[1645910667853,0.00039432,39676.0,39671.0,0.00045573]
[1645910668806,0.25,39677.0,39670.0,0.377549]
[1645910668807,0.18997709,39674.0,39670.0,0.377549]
[1645910669010,0.18997709,39674.0,39672.0,0.00045573]
[1645910670010,0.18997709,39674.0,39670.0,0.377549]
[1645910670216,0.18997709,39674.0,39671.0,0.00045573]
[1645910671314,0.18997709,39674.0,39670.0,0.377549]
[1645910671515,0.18997709,39674.0,39671.0,0.00033755]
[1645910671516,0.16017648,39673.0,39671.0,0.00033755]
[1645910671712,0.18997709,39674.0,39671.0,0.00033755]
[1645910671975,0.460204,39673.0,39671.0,0.00033755]
[1645910672176,0.160204,39673.0,39671.0,0.00033755]
[1645910672373,0.160204,39673.0,39666.0,0.002]
[1645910672573,0.22692632,39668.0,39658.0,0.3]
[1645910672769,0.22692632,39668.0,39659.0,0.75645]
[1645910673168,0.22692632,39668.0,39660.0,0.3]
[1645910673367,0.22692632,39668.0,39661.0,0.75641]
[1645910673970,0.598173,39679.0,39661.0,0.75538839]
[1645910674171,0.57203,39679.0,39662.0,0.3]
[1645910674368,0.57203,39679.0,39661.0,0.75538839]
[1645910674568,0.00638959,39678.0,39661.0,0.75538839]
[1645910674769,0.06945559,39678.0,39661.0,0.75538839]
[1645910675071,0.1935543,39669.0,39668.0,0.00045589]
[1645910675273,0.4001583,39669.0,39668.0,0.00045589]
[1645910675469,0.60444612,39669.0,39668.0,0.00045589]
[1645910676115,0.60444612,39669.0,39661.0,0.75538839]
[1645910676116,0.063082,39668.0,39661.0,0.75538839]
[1645910676412,0.28637,39667.0,39661.0,0.75538839]
[1645910676611,0.21394311,39663.0,39661.0,0.75538839]
[1645910676817,0.160204,39662.0,39661.0,0.75538839]
[1645910677014,0.206604,39662.0,39661.0,0.75538839]
[1645910677414,0.68192966,39662.0,39661.0,0.75538839]
[1645910677614,0.22172566,39662.0,39661.0,0.75538839]
[1645910677815,0.110485,39662.0,39661.0,0.75538839]
[1645910678016,0.0474,39662.0,39661.0,0.75538839]
[1645910678216,0.207604,39662.0,39661.0,0.75538839]
[1645910678623,0.206604,39662.0,39661.0,0.75538839]
[1645910679465,0.37699991,39662.0,39661.0,0.75538839]
[1645910679864,0.57148933,39662.0,39661.0,0.75538839]
[1645910680262,0.82148933,39662.0,39661.0,0.75538839]
[1645910680466,0.65209342,39662.0,39661.0,0.75538839]
[1645910680664,0.456604,39662.0,39661.0,0.75538839]
[1645910680866,0.2964,39662.0,39661.0,1.13293739]
[1645910681068,0.25,39662.0,39661.0,1.13293739]
[1645910681274,0.096,39671.0,39663.0,0.377549]
[1645910681468,0.00039532,39675.0,39665.0,0.377549]
[1645910681669,0.00039532,39675.0,39666.0,0.3]
[1645910681670,0.21116958,39673.0,39666.0,0.3]
[1645910681866,0.21116958,39673.0,39663.0,0.3]
[1645910682365,0.42676548,39673.0,39668.0,0.00045589]
[1645910682564,0.160204,39672.0,39663.0,0.29545589]
[1645910682767,0.21116958,39673.0,39662.0,0.3184232]
[1645910682967,0.21116958,39673.0,39663.0,0.377549]
[1645910683211,0.21116958,39673.0,39664.0,0.3]
[1645910683419,0.21116958,39673.0,39665.0,0.377549]
[1645910683712,0.21116958,39673.0,39667.0,0.377549]
[1645910684114,0.21116958,39673.0,39664.0,0.377549]
[1645910684511,0.38623074,39673.0,39664.0,0.377549]
[1645910684713,0.21116958,39673.0,39663.0,0.3]
[1645910685112,0.20893455,39667.0,39664.0,0.377549]
[1645910686712,0.20893455,39667.0,39664.0,0.367549]
[1645910687158,0.20893455,39667.0,39664.0,0.36800493]
[1645910688062,0.063065,39674.0,39665.0,0.677344]
[1645910688260,0.00039652,39674.0,39665.0,0.377344]
[1645910688460,0.00039652,39674.0,39665.0,0.377243]
[1645910689062,0.20207846,39673.0,39665.0,0.377243]
[1645910689461,0.20207846,39673.0,39666.0,0.00045591]
[1645910689959,0.20207846,39673.0,39666.0,0.37779991]
[1645910690161,0.00039656,39674.0,39667.0,0.3]
[1645910690361,0.00039656,39674.0,39668.0,0.37734]
[1645910690559,2.31416869,39678.0,39667.0,0.37734]
[1645910690815,2.31416869,39678.0,39664.0,0.3]
[1645910690816,0.00039657,39674.0,39666.0,0.00045591]
[1645910691014,0.00039657,39674.0,39667.0,0.37734]
[1645910691215,0.2118789,39674.0,39667.0,0.37734]
[1645910691411,0.2118789,39674.0,39667.0,0.37234]
[1645910691616,0.1818789,39674.0,39667.0,0.37234]
[1645910692014,0.18227547,39674.0,39667.0,0.37234]
[1645910692415,0.18227547,39674.0,39666.0,0.00045591]
[1645910692818,0.1818789,39674.0,39664.0,0.3]
[1645910693015,0.17885857,39668.0,39666.0,0.377332]
[1645910693216,0.25,39674.0,39662.0,0.6184232]
[1645910693517,0.25,39674.0,39663.0,0.377332]
[1645910693718,0.25,39674.0,39665.0,0.377332]
[1645910693918,0.25,39674.0,39664.0,0.3]
[1645910693919,0.25,39674.0,39667.0,0.377332]
[1645910694560,0.25,39674.0,39669.0,0.377332]
[1645910695360,0.48833153,39674.0,39669.0,0.377332]
[1645910695559,0.48833153,39674.0,39669.0,0.37778788]
[1645910695761,0.48833153,39674.0,39669.0,0.00045588]
[1645910695762,0.48333153,39674.0,39669.0,0.00045588]
[1645910696164,0.180339,39673.0,39669.0,0.00045588]
[1645910696364,0.0464,39672.0,39669.0,1.628e-05]
[1645910696668,0.063073,39670.0,39664.0,0.002]
[1645910696963,0.245,39674.0,39662.0,0.3184232]
[1645910697161,0.24,39674.0,39662.0,0.3184232]
[1645910697564,0.17221881,39667.0,39662.0,0.3184232]
[1645910700310,0.17221881,39667.0,39663.0,0.00045593]
[1645910701313,0.17221881,39667.0,39662.0,0.3184232]
[1645910701513,0.17221881,39667.0,39663.0,0.00045593]
[1645910701977,0.19115133,39665.0,39663.0,0.00045593]
[1645910702277,0.226739,39664.0,39663.0,0.00045593]
[1645910702470,0.226739,39664.0,39662.0,0.3184232]
[1645910702675,0.226739,39664.0,39662.0,0.31887914]
[1645910703774,0.226739,39664.0,39662.0,0.3184232]
[1645910704378,0.0464,39664.0,39662.0,0.3184232]
[1645910704567,0.180339,39663.0,39662.0,0.3184232]
[1645910704767,0.0464,39663.0,39662.0,0.3184232]
[1645910705371,0.0464,39663.0,39662.0,0.6957552]
[1645910705572,0.05039661,39673.0,39662.0,0.6957552]
[1645910705573,0.00039661,39673.0,39662.0,0.6957552]
[1645910705818,0.00039661,39673.0,39663.0,0.377332]
[1645910706219,0.18859874,39675.0,39662.0,0.3184232]
[1645910706421,0.19063514,39665.0,39663.0,0.377332]
[1645910706620,0.19063514,39665.0,39662.0,0.3184232]
[1645910706818,0.00011913,39673.0,39663.0,0.677332]
[1645910707023,0.00011913,39673.0,39663.0,0.3]
[1645910707218,0.126132,39680.0,39664.0,0.377332]
[1645910707420,0.063063,39679.0,39665.0,0.3]
[1645910707619,0.00011913,39673.0,39663.0,0.3]
[1645910707820,0.18665653,39670.0,39663.0,0.3]
[1645910708019,0.39485789,39670.0,39663.0,0.3]
[1645910708222,0.00011913,39673.0,39664.0,0.677332]
[1645910708422,0.12835843,39681.0,39664.0,0.677332]
[1645910708820,0.00039666,39673.0,39667.0,0.00045603]
[1645910709021,0.00039666,39673.0,39668.0,0.377332]
[1645910709857,0.22933393,39676.0,39668.0,0.377332]
[1645910710058,0.17808672,39681.0,39670.0,0.377332]
[1645910710257,0.17808672,39681.0,39668.0,0.377332]
[1645910710859,0.19281413,39675.0,39668.0,0.377332]
[1645910711060,2.07800383,39682.0,39668.0,0.377332]
[1645910711259,2.07800383,39682.0,39664.0,0.377332]
[1645910711463,2.07800383,39682.0,39665.0,0.3]
[1645910711661,2.07800383,39682.0,39664.0,0.377332]
[1645910711860,2.07800383,39682.0,39663.0,0.302]
[1645910711861,0.17267148,39676.0,39666.0,0.377332]
[1645910712062,0.17267148,39676.0,39668.0,0.377332]
[1645910712462,0.000119,39675.0,39668.0,0.377332]
[1645910713308,0.17267148,39676.0,39668.0,0.377332]
[1645910713513,0.17267148,39676.0,39669.0,0.00045601]
[1645910713709,0.00039568,39675.0,39669.0,0.00045601]
[1645910714111,0.00039568,39675.0,39669.0,0.00034974]
[1645910714509,0.17267148,39676.0,39668.0,0.377332]
[1645910714710,0.17267148,39676.0,39663.0,0.3]
[1645910714711,0.19563008,39672.0,39663.0,0.3]
[1645910714919,0.19563008,39672.0,39664.0,0.75737]
[1645910715114,0.42267148,39676.0,39664.0,0.75737]
[1645910715115,0.063065,39674.0,39664.0,0.75737]
[1645910715711,0.17394392,39667.0,39664.0,0.75737]
[1645910717170,0.00011877,39673.0,39664.0,0.75737]
[1645910717368,0.00011877,39673.0,39665.0,0.377332]
[1645910717571,0.00011877,39673.0,39664.0,0.75737]
[1645910717767,0.00011877,39673.0,39665.0,0.377332]
[1645910717964,0.00011877,39673.0,39665.0,0.677332]
[1645910718168,0.23133817,39674.0,39665.0,0.677332]
[1645910718366,0.23133817,39674.0,39668.0,0.377332]
[1645910718565,0.00039594,39673.0,39669.0,0.377332]
[1645910718764,0.00039594,39673.0,39668.0,0.377332]
[1645910719367,0.23133817,39674.0,39665.0,0.3]
[1645910719666,0.00039596,39673.0,39668.0,0.00045602]
[1645910720069,0.00039596,39673.0,39669.0,0.377332]
[1645910720273,0.00039596,39673.0,39670.0,1.05726]
[1645910720466,0.00039596,39673.0,39671.0,0.377332]
[1645910720725,0.4743,39684.0,39673.0,0.377332]
[1645910720920,0.47588345,39684.0,39674.0,0.3]
[1645910721221,0.00158345,39684.0,39675.0,0.377332]
[1645910721417,0.00158345,39684.0,39677.0,0.377332]
[1645910721821,0.0021,39685.0,39679.0,0.377332]
[1645910722220,0.00012126,39682.0,39679.0,0.377332]
[1645910722424,0.00012126,39682.0,39681.0,0.377332]
[1645910722623,0.00012126,39682.0,39681.0,0.75705]
[1645910722820,0.00012126,39682.0,39681.0,1.134382]
[1645910723020,0.19683122,39684.0,39681.0,1.134382]
[1645910723220,0.00039596,39683.0,39681.0,0.75705]
[1645910723419,0.19787576,39683.0,39681.0,0.75705]
[1645910723622,0.00039596,39683.0,39682.0,0.377332]
[1645910723920,0.18722718,39684.0,39681.0,0.75705]
[1645910724773,0.0021,39685.0,39682.0,0.377332]
[1645910724972,0.0021,39685.0,39681.0,0.75705]
[1645910725172,0.0021,39685.0,39682.0,0.377332]
[1645910725374,0.0021,39685.0,39682.0,0.367332]
[1645910725570,0.00221879,39685.0,39681.0,0.75705]
[1645910725769,0.00221879,39685.0,39682.0,0.377224]
[1645910726571,0.0021,39685.0,39682.0,0.377224]
[1645910726771,0.00249497,39685.0,39683.0,0.377224]
[1645910727275,0.00249497,39685.0,39684.0,0.677224]